Workbook

Sheet 表紙
A1: 3 | B1: 工 事 設 計 書
A5: 工 事 名 | B5: ゆめぽりすセンター非常灯取替工事
A9: 施 工 地 名 | C9: 伊賀市 | D9: ゆめが丘 | F9: 地内
A13: 工 費
B15: \
A17: 工 期 | B17: 契約の日から 令和4年3月16日まで | F17: 設 計 | G17: 令和３年１１月
F20: 設 計 | I20: 検 算
A21: 工 事 の 大 要
A24: 〇非常灯（LED）取替工事 （１階） 和室・廊下：７台，会議室：２台，大小会議室：８台，ｴﾝﾄﾗﾝｽﾎｰﾙ：５台，小会議室：１台 （２階） 大会議室：６台，ホール・通路：４台，階段：１台 | F24: 業 種 | G24: 電 | I24: 業種コード | J24: 08

Sheet 設計書
B1: =表紙!B5 -> ゆめぽりすセンター非常灯取替工事
A2: 用途 | B2: 名 称 | C2: 摘 要 | D2: 数 量 | E2: 単位 | F2: 単 価 | G2: 金 額 | H2: 備 考
A5: Ａ | B5: 直接工事費 | C5: 発生材処分費共 | D5: 1 | E5: 式
A9: Ｂ | B9: 共通仮設費 | C9: 共通仮設費率 | D9: 1 | E9: 式
B15: 純工事費
A19: Ｃ | B19: 現場管理費 | C19: 現場管理費率 | D19: 1 | E19: 式
B25: 工事原価
A29: Ｄ | B29: 一般管理費 | D29: 1 | E29: 式
B33: 工事価格
B37: 消費税及び地方消費税 | D37: 1 | E37: 式
B39: 工事費計
A41: A | B41: 直接工事費
A43: 1 | B43: 直接仮設費 | D43: 1 | E43: 式
A45: 2 | B45: 電気設備工事 | D45: 1 | E45: 式
A47: 3 | B47: 処分費 | D47: 1 | E47: 式
B73: 計
A77: 1 | B77: =B43 -> 直接仮設費
B79: 内部足場 | C79: 高所作業用 | D79: 1 | E79: 式
B111: 1の計
A113: 2 | B113: =B45 -> 電気設備工事
B114: 和室・廊下
A115: 1階 | B115: ＬＥＤ非常灯 | C115: NNFB91625J 同等品以上 | D115: 7 | E115: 台
B116: 会議室 | C116: 下面開放 ﾙｰﾊﾞｰ無し
B117: ＬＥＤ非常灯 | C117: XLG451VGNLE9 同等品以上 | D117: 2 | E117: 台
B118: 大会議室・小会議室 | C118: 下面開放 ﾙｰﾊﾞｰ無し
B119: ＬＥＤ非常灯 | C119: XLG451VGNLE9 同等品以上 | D119: 8 | E119: 台
B120: エントランスホール
B121: ＬＥＤ非常灯 | C121: NNFB91605J 同等品以上 | D121: 5 | E121: 台
B122: 小会議室 | C122: ﾗﾝﾌﾟ：NNLG4205GNLE9
B123: ＬＥＤ非常灯 | C123: NNLG42830(加工品) 同等品以上 | D123: 1 | E123: 台
B126: 大会議室
A127: 2階 | B127: ＬＥＤ非常灯 | C127: NNFB93605J 同等品以上 | D127: 6 | E127: 台
B128: ホール・通路
B129: ＬＥＤ非常灯 | C129: NNFB91605J 同等品以上 | D129: 4 | E129: 台
B130: 階段
B131: ＬＥＤ非常灯 | C131: NNFB93605J 同等品以上 | D131: 1 | E131: 台
B135: 同上電工費 | D135: 1 | E135: 式
B147: 2の計
A149: 3 | B149: 処分費
B151: 処分費 | C151: 取替品 | D151: 1 | E151: 式
B183: 3の計

Sheet 設計書(大内）控 (hidden)
B1: =表紙!B5 -> ゆめぽりすセンター非常灯取替工事
A2: 用途 | B2: 名 称 | C2: 摘 要 | D2: 数 量 | E2: 単位 | F2: 単 価 | G2: 金 額 | H2: 備 考
H4: (直接工事費+廃材処分費) | S4: 入力
A5: Ａ | B5: 直接工事費 | C5: 発生材処分費共 | D5: 1 | E5: 式 | G5: =H5-G441 -> 5774100 | H5: =G73 -> 5874100 | M5: + | N5: =G265 -> 100000 | V5: 平成21年度からの経費 | Z5: 平成20年度までの経費
S6: 式 | V6: 共通仮設費 | X6: % | Z6: 純工事費 | AA6: 現場経費立 | AB6: 一般管理費
S7: ヶ所 | V7: 新営建築工事 | W7: =X7/100 ->  | X7: =#REF! ->  | Z7: 0 | AA7: 0.1039 | AB7: 0.0706
H8: 率対象分 | S8: 個 | V8: 改修建築工事 | X8: =#REF! ->  | Z8: 1000000 | AA8: 0.101 | AB8: 0.0703
A9: Ｂ | B9: 共通仮設費 | C9: 共通仮設費率 | D9: 1 | E9: 式 | G9: =#REF!+#REF!+#REF!+#REF! ->  | H9: =H5 -> 5874100 | S9: ｍ | V9: 新営電気設備工事 | X9: =#REF! ->  | Z9: 5000000 | AA9: 0.092 | AB9: 0.0691
S10: ｍｍ | V10: 改修電気設備工事 | X10: =#REF! ->  | Z10: 10000000 | AA10: 0.0858 | AB10: 0.0681
S11: 本 | V11: 新営機械設備工事 | X11: =#REF! ->  | Z11: 20000000 | AA11: 0.0781 | AB11: 0.0667
S12: ｍ2 | V12: 改修機械設備工事 | X12: =#REF! ->  | Z12: 50000000 | AA12: 0.0728 | AB12: 0.0656
S13: ｍ3 | V13: 昇降機設備工事 | X13: =#REF! ->  | Z13: 100000000 | AA13: 0.0679 | AB13: 0.0644
S14: 回 | V14: その他工事 | W14: 0.01 | X14: 1 | Z14: 200000000 | AA14: 0.0619 | AB14: 0.0629
B15: 純工事費 | G15: =G5+G9+G11 ->  | S15: 台 | Z15: 500000000 | AA15: 0.0577 | AB15: 0.0617
S16: 組 | V16: 現場経費 | X16: ％ | Z16: 1000000000 | AA16: 0.0537 | AB16: 0.0605
S17: kg | V17: 新営建築工事 | W17: =X17/100 ->  | X17: =#REF! -> 
H18: 率対象分 | S18: ｔ | V18: 改修建築工事 | X18: =#REF! -> 
A19: Ｃ | B19: 現場管理費 | C19: 現場管理費率 | D19: 1 | E19: 式 | G19: =#REF! ->  | H19: =G15-N5 ->  | S19: 人工 | V19: 新営電気設備工事 | X19: =#REF! -> 
S20: 人 | V20: 改修電気設備工事 | X20: =#REF! -> 
S21: 日 | V21: 新営機械設備工事 | X21: =#REF! -> 
S22: 空ｍ3 | V22: 改修機械設備工事 | X22: =#REF! -> 
S23: 空ｍ2 | V23: 昇降機設備工事 | X23: =#REF! -> 
S24: 架ｍ2 | V24: 解体工事 | X24: =ROUND(X17/2,2) -> 
B25: 工事原価 | G25: =G15+G19+G21 ->  | S25: 時間 | V25: その他工事 | W25: 0.02 | X25: 2
V27: 一般管理費 | X27: ％
V28: 建築工事 | W28: =X28/100 ->  | X28: =#REF! -> 
A29: Ｄ | B29: 一般管理費 | D29: 1 | E29: 式 | G29: =#REF! ->  | V29: 電気設備工事 | W29: =X29/100 ->  | X29: =#REF! -> 
V30: 機械設備工事 | W30: =X30/100 ->  | X30: =#REF! -> 
V31: 昇降機設備工事 | W31: =X31/100 ->  | X31: =#REF! -> 
B33: 工事価格 | G33: =G25+G29 -> 
V35: 前金補正 | W35: コード
V36: ５以下 | W36: 1.05
B37: 消費税及び地方消費税 | D37: 1 | E37: 式 | G37: =ROUNDDOWN(G33*H37,0) ->  | H37: 0.1 | V37: ５を超え15以下 | W37: 1.04
V38: 15を超え25以下 | W38: 1.03
B39: 工事費計 | G39: =G33+G37 ->  | V39: 25を超え35以下 | W39: 1.01
G40: =IF(F40="","",ROUNDDOWN(D40*F40,)) -> 
G41: =IF(F41="","",ROUNDDOWN(D41*F41,)) -> 
A43: 1 | B43: 美術室空調設置工事 | D43: 1 | E43: 式 | G43: =G109 -> 3035800
A45: 2 | B45: 高圧受電設備改修工事 | D45: 1 | E45: 式 | G45: =G289 -> 2838300
G52: =IF(F52="","",ROUNDDOWN(D52*F52,)) -> 
G53: =IF(F53="","",ROUNDDOWN(D53*F53,)) -> 
G54: =IF(F54="","",ROUNDDOWN(D54*F54,)) -> 
G55: =IF(F55="","",ROUNDDOWN(D55*F55,)) -> 
G56: =IF(F56="","",ROUNDDOWN(D56*F56,)) -> 
B73: 計 | G73: =G43+G45+G47 -> 5874100
G76: =IF(F76="","",ROUNDDOWN(D76*F76,)) ->  | T76: 自由入力欄
G77: =IF(F77="","",ROUNDDOWN(D77*F77,)) ->  | S77: コストP
S78: 物価 Ｐ
A79: 1-1 | B79: =B43 -> 美術室空調設置工事 | D79: 1 | E79: 式 | G79: =G145 -> 1208000 | S79: 積算 Ｐ
S80: 施単 Ｐ
A81: 1-2 | B81: 空調機器設置工事 | D81: 1 | E81: 式 | G81: =G181 -> 625000 | S81: 積算基準Ｐ
S82: ポ Ｐ
A83: 1-3 | B83: 電気設備工事 | D83: 1 | E83: 式 | G83: =G253 -> 1202800 | S83: 見積
S84: 代価表
S85: 労務単価
G88: =IF(F88="","",ROUNDDOWN(D88*F88,)) ->  | S88: 直工（共通仮設費積上げ+ＥＬＶ+電気+機械＋処分費除く）
G89: =IF(F89="","",ROUNDDOWN(D89*F89,)) ->  | S89: =G109-G79-#REF!-G83-G85-#REF! -> 
G90: =IF(F90="","",ROUNDDOWN(D90*F90,)) ->  | S90: 直工（共通仮設積上+処分費除く）
G91: =IF(F91="","",ROUNDDOWN(D91*F91,)) ->  | S91: =G73-G265 -> 5774100
G92: =IF(F92="","",ROUNDDOWN(D92*F92,)) ->  | S92: 共通仮設（積上）
S93: =G79 -> 1208000
S94: 処分費
S95: =#REF! -> 
S96: 昇降機
S97: =G161 -> 58000
S98: 設備工事
S99: =G79+G81 -> 1833000
S100: 電気工事
S101: =G83 -> 1202800
B109: 計 | G109: =G79+G81+G83 -> 3035800
G112: =IF(F112="","",ROUNDDOWN(D112*F112,)) ->  | T112: 自由入力欄
A113: 1-1 | B113: =B43 -> 美術室空調設置工事 | G113: =IF(F113="","",ROUNDDOWN(D113*F113,)) ->  | S113: コストP
C114: 天吊形 4馬力 P112形 | H114: 見積 | S114: 物価 Ｐ
B115: 室内空調機 | D115: 2 | E115: 組 | F115: 151000 | G115: =D115*F115 -> 302000 | H115: 321,000×47% | S115: 積算 Ｐ
H116: 見積 | S116: 施単 Ｐ
B117: 室外空調機 | C117: 転倒防止含む | D117: 2 | E117: 組 | F117: 360000 | G117: =D117*F117 -> 720000 | H117: 767,000×47% | S117: 積算基準Ｐ
H118: 見積 | S118: ポ Ｐ
B119: リモコンスイッチ | D119: 2 | E119: 組 | F119: 18000 | G119: =D119*F119 -> 36000 | H119: 41,000×44% | S119: 見積
H120: 見積 | S120: 代価表
B121: ドレンアップメカ | D121: 2 | E121: 組 | F121: 31000 | G121: =D121*F121 -> 62000 | S121: 労務単価
H122: 見積
B123: 防護ネット | C123: PAC-SJ74AN同等品以上 | D123: 2 | E123: 組 | F123: 44000 | G123: =D123*F123 -> 88000
S124: 直工（共通仮設費積上げ+ＥＬＶ+電気+機械＋処分費除く）
S125: =G145-G115-#REF!-G119-G121-#REF! -> 
S126: 直工（共通仮設積上+処分費除く）
S127: =G145-G115-#REF! -> 
G128: =IF(F128="","",ROUNDDOWN(D128*F128,)) ->  | S128: 共通仮設（積上）
S129: =G115 -> 302000
S130: 処分費
S131: =#REF! -> 
S132: 昇降機
S133: =G197 -> 5800
B145: 1-1の計 | G145: =G115+G117+G119+G121+G123+G125 -> 1208000
G148: =IF(F148="","",ROUNDDOWN(D148*F148,)) -> 
A149: 1-2 | B149: 空調機器設置工事 | G149: =IF(F149="","",ROUNDDOWN(D149*F149,)) -> 
C150: NC-320-8 | H150: 見積
B151: 銅管10mm保温 | C151: 9.52×0.8 | D151: 30 | E151: ｍ | F151: 600 | G151: =D151*F151 -> 18000
C152: NC-520 | H152: 見積
B153: 銅管10mm保温 | C153: 15.88×1.0 | D153: 30 | E153: ｍ | F153: 1270 | G153: =D153*F153 -> 38100 | S153: 9275
H154: 見積
B155: ＡＣドレン | C155: 20A | D155: 18 | E155: ｍ | F155: 1050 | G155: =D155*F155 -> 18900 | S155: =SUM(G151:G155) -> 75000
H156: 見積 | S156: 運搬費
B157: ビニルパイプ | C157: VP-20 | D157: 4 | E157: ｍ | F157: 300 | G157: =D157*F157 -> 1200 | S157: =#REF! -> 
H158: 見積 | S158: 直工（電気+機械＋積上+処分費除く）
B159: 配管付属品 | C159: ガラス入替 | D159: 1 | E159: 式 | G159: 20000 | S159: =S155+S157 -> 
G160: =IF(F160="","",ROUNDDOWN(D160*F160,)) ->  | H160: 見積
B161: 配管保護材 | C161: スリムダクト | D161: 1 | E161: 式 | G161: 58000
G162: =IF(F162="","",ROUNDDOWN(D162*F162,)) ->  | H162: 見積
B163: 渡り配線 | D163: 2 | E163: 箇所 | F163: 8000 | G163: =D163*F163 -> 16000
H164: 見積
B165: 機器取付支持材 | D165: 1 | E165: 式 | G165: 38000
H166: 見積
B167: 壁貫通費 | D167: 3 | E167: 箇所 | F167: 20000 | G167: =D167*F167 -> 60000
H168: 見積
B169: 消耗品・雑材料費 | D169: 1 | E169: 式 | G169: 18800
G170: =IF(F170="","",ROUNDDOWN(D170*F170,)) ->  | H170: 見積
B171: 機器設置費 | D171: 1 | E171: 式 | G171: 180000
G172: =IF(F172="","",ROUNDDOWN(D172*F172,)) ->  | H172: 見積
B173: 天井点検口設置費 | D173: 2 | E173: 箇所 | F173: 20000 | G173: =D173*F173 -> 40000
G174: =IF(F174="","",ROUNDDOWN(D174*F174,)) ->  | H174: 見積
B175: 試験調整費 | C175: 温度測定，気密試験等 | D175: 1 | E175: 式 | G175: 38000
G176: =IF(F176="","",ROUNDDOWN(D176*F176,)) ->  | H176: 見積
B177: 室外機基礎工事 | C177: 置台含む | D177: 1 | E177: 式 | G177: 80000
G178: =IF(F178="","",ROUNDDOWN(D178*F178,)) -> 
G179: =IF(F179="","",ROUNDDOWN(D179*F179,)) -> 
G180: =IF(F180="","",ROUNDDOWN(D180*F180,)) -> 
B181: 1-2の計 | G181: =SUM(G150:G179) -> 625000
G184: =IF(F184="","",ROUNDDOWN(D184*F184,)) -> 
A185: 1-3 | B185: 電気設備工事 | G185: =IF(F185="","",ROUNDDOWN(D185*F185,)) -> 
C186: MCB30A-2個ｽﾍﾟｰｽ2 | H186: 見積
B187: 屋外盤 | C187: H630,W800程度 | D187: 1 | E187: 面 | G187: 320000
H188: 見積
B189: ブレーカ 付属共 | C189: MCCB3P 150A | D189: 1 | E189: 個 | G189: 81000
H190: 見積
B191: 埋設用配管材 | C191: FEP φ65 | D191: 30 | E191: ｍ | F191: 1140 | G191: =D191*F191 -> 34200
H192: 見積
B193: 同ベルマウス | D193: 1 | E193: 個 | G193: 1000
H194: 見積
B195: 異種接手 | C195: NP65 | D195: 1 | E195: 個 | G195: 12680
G196: =IF(F196="","",ROUNDDOWN(D196*F196,)) ->  | H196: 見積
B197: 埋設シート | C197: ダブル | D197: 1 | E197: 巻 | G197: 5800
G198: =IF(F198="","",ROUNDDOWN(D198*F198,)) ->  | H198: 見積
B199: HIVE 70 | D199: 1 | E199: 本 | G199: 4760
H200: 見積
B201: 同ノーマル | D201: 1 | E201: 本 | G201: 3500
H202: 見積
B203: 電線管 | C203: C25P | D203: 4 | E203: 本 | F203: 1490 | G203: =D203*F203 -> 5960
H204: 見積
B205: 同ノーマル | D205: 2 | E205: 本 | F205: 290 | G205: =D205*F205 -> 580
C206: PAC-M3 | H206: 見積
B207: 配管塗装費 | C207: プライマー共 2回塗り | D207: 1 | E207: 式 | G207: 40000
G208: =IF(F208="","",ROUNDDOWN(D208*F208,)) ->  | H208: 見積
B209: 金属可とう管 | C209: ＃24 | D209: 2 | E209: ｍ | F209: 480 | G209: =D209*F209 -> 960
G210: =IF(F210="","",ROUNDDOWN(D210*F210,)) ->  | H210: 見積
B211: 同コネクタ | D211: 4 | E211: 個 | F211: 810 | G211: =D211*F211 -> 3240
G212: =IF(F212="","",ROUNDDOWN(D212*F212,)) ->  | H212: 見積
B213: 電線管付属品 | D213: 1 | E213: 式 | G213: 9110
G214: =IF(F214="","",ROUNDDOWN(D214*F214,)) ->  | H214: 見積
B215: 配管支持材SUS製 | C215: 配管支持材 | D215: 1 | E215: 式 | G215: 9500
H216: 見積
B217: 電線 | C217: KIV60sq | D217: 2 | E217: ｍ | F217: 1800 | G217: =D217*F217 -> 3600
H218: 見積
B219: 電線 | C219: EM-CET60sq | D219: 48 | E219: ｍ | F219: 2900 | G219: =D219*F219 -> 139200
G220: =IF(F220="","",ROUNDDOWN(D220*F220,)) ->  | H220: 見積
B221: 電線アース | C221: EM-IE22sqG | D221: 48 | E221: ｍ | F221: 450 | G221: =IF(F221="","",ROUNDDOWN(D221*F221,)) -> 21600
H222: 見積
B223: 電線 | C223: EM-CE5.5-4C | D223: 15 | E223: ｍ | F223: 790 | G223: =IF(F223="","",ROUNDDOWN(D223*F223,)) -> 11850
H224: 見積
B225: 電線 | C225: EM-AE1.2-2C | D225: 20 | E225: ｍ | F225: 210 | G225: =IF(F225="","",ROUNDDOWN(D225*F225,)) -> 4200
H226: 見積
B227: 電線 | C227: EM-EEF2.0-3C | D227: 66 | E227: ｍ | F227: 210 | G227: =IF(F227="","",ROUNDDOWN(D227*F227,)) -> 13860
H228: 見積
B229: メタルモール本体Ａ型 | C229: DZA100KW 同等品以上 | D229: 2 | E229: 本 | F229: 1500 | G229: =IF(F229="","",ROUNDDOWN(D229*F229,)) -> 3000
H230: 見積
B231: メタルモール付属品 | C231: DZA145KW 同等品以上 | D231: 2 | E231: 個 | F231: 700 | G231: =IF(F231="","",ROUNDDOWN(D231*F231,)) -> 1400
G232: =IF(F232="","",ROUNDDOWN(D232*F232,)) ->  | H232: 見積
B233: メタルモール付属品 | C233: DZB262KW 同等品以上 | D233: 2 | E233: 個 | F233: 1300 | G233: =IF(F233="","",ROUNDDOWN(D233*F233,)) -> 2600
G234: =IF(F234="","",ROUNDDOWN(D234*F234,)) ->  | H234: 見積
B235: 消耗品・雑材料費 | D235: 1 | E235: 式 | G235: 40200
H236: 見積
B237: 電工費 | D237: 11 | E237: 人工 | F237: 21800 | G237: =IF(F237="","",ROUNDDOWN(D237*F237,)) -> 239800
H238: 見積
B239: 保安協会立会費 | D239: 1 | E239: 式 | G239: 16000
H240: 見積
B241: バックホウ | D241: 2 | E241: 日 | F241: 20000 | G241: =D241*F241 -> 40000
H242: 見積
B243: 同上運搬費 | D243: 1 | E243: 式 | G243: 29000
G244: =IF(F244="","",ROUNDDOWN(D244*F244,)) ->  | H244: 見積
B245: 特殊作業員 | D245: 2 | E245: 人工 | F245: 22700 | G245: =D245*F245 -> 45400
G246: =IF(F246="","",ROUNDDOWN(D246*F246,)) ->  | H246: 見積
B247: 普通作業員 | D247: 3 | E247: 人工 | F247: 19600 | G247: =D247*F247 -> 58800
B253: 1-3の計 | G253: =SUM(G186:G247) -> 1202800
G256: =IF(F256="","",ROUNDDOWN(D256*F256,)) -> 
G257: =IF(F257="","",ROUNDDOWN(D257*F257,)) -> 
A259: 2-1 | B259: 幹線工事 | D259: 1 | E259: 式 | G259: =G325 -> 313400
A261: 2-2 | B261: 主変電所改修工事 | D261: 1 | E261: 式 | G261: =G397 -> 2424900
A265: 2-4 | B265: 廃材処分 | D265: 1 | E265: 式 | G265: =G469 -> 100000
B289: 計 | G289: =G259+G261+G263+G265 -> 2838300
G292: =IF(F292="","",ROUNDDOWN(D292*F292,)) -> 
G293: =IF(F293="","",ROUNDDOWN(D293*F293,)) -> 
... 61 more rows

Sheet 撤去費 (hidden)
A1: 件名 | B1: 青山中学校美術室空調設備設置及び高圧受電設備改修工事 | C1: 単価資料 | D1: 物 ・ | E1: 建設物価 | F1: 2021.4 | G1: 積 ・ | H1: 積算資料 | I1: 2021.4 | J1: 積 ) | K1: R3年度版 公共建築工事標準単価積算基準 | N1: R2年度公共工事 | O1: 電工費 | P1: 21800 | Q1: 883 | R1: 建設物価
A2: 代価名 | B2: 撤去費 | D2: ｺｽﾄ ・ | E2: ｺｽﾄ 情報 | F2: 2021.4春号 | G2: 施 ・ | H2: 施工単価 | I2: 2021.4春号 | N2: 労務単価 | O2: 普通作業員 | P2: 19600 | Q2: 883 | R2: （三重）
K3: 新営工事の労務歩掛 | N3: 労務歩掛に対する掛け率
O4: 再使用する | P4: 労務費計 | Q4: その他率 | R4: その他計
A5: NO. | B5: 名 称 | C5: 摘 要 | E5: 数 量 | F5: 単 位 | G5: 複合単価 | H5: 合 計 | I5: 根 拠 | K5: 電工歩 | L5: 掛 | M5: 普通歩 | N5: 再使用しない | O5: 取り外し | P5: ① | Q5: e | R5: ①×e
A7: 電撤-1 | B7: 主変電所改修工事 | E7: 1 | F7: 式
I8: 積 )
B9: LA | C9: GLI-6G 8.4KV2.5KA | E9: 3 | F9: 個 | G9: =IF((P9+R9)>100000,ROUND((P9+R9),-3),IF((P9+R9)>10000,ROUND((P9+R9),-2),IF((P9+R9)>100,ROUND((P9+R9),-1),(P9+R9)))) -> 1300 | H9: =E9*G9 -> 3900 | I9: 66 | K9: 0.159 | L9: 1 | N9: 0.3 | P9: =(K9*L9*$P$1+M9*L9*$P$2)*N9 -> 1039.86 | Q9: 0.25 | R9: =P9*Q9 -> 259.965
C10: 100KVA | I10: 積 )
B11: 電灯トランス | C11: 6KV/210-105V 油入り | E11: 1 | F11: 台 | G11: =IF((P11+R11)>100000,ROUND((P11+R11),-3),IF((P11+R11)>10000,ROUND((P11+R11),-2),IF((P11+R11)>100,ROUND((P11+R11),-1),(P11+R11)))) -> 18200 | H11: =E11*G11 -> 18200 | I11: 66 | K11: 1.17 | L11: 1 | M11: 1.17 | N11: 0.3 | P11: =(K11*L11*$P$1+M11*L11*$P$2)*N11 -> 14531.4 | Q11: 0.25 | R11: =P11*Q11 -> 3632.85
I12: 積 ) | K12: 50A流用
B13: 高圧ｶｯﾄｱｳﾄ | C13: PC-6-30 | E13: 8 | F13: 組 | G13: =IF((P13+R13)>100000,ROUND((P13+R13),-3),IF((P13+R13)>10000,ROUND((P13+R13),-2),IF((P13+R13)>100,ROUND((P13+R13),-1),(P13+R13)))) -> 1300 | H13: =E13*G13 -> 10400 | I13: 66 | K13: 0.159 | L13: 1 | N13: 0.3 | P13: =(K13*L13*$P$1+M13*L13*$P$2)*N13 -> 1039.86 | Q13: 0.25 | R13: =P13*Q13 -> 259.965
I14: 積 )
B15: ﾃﾝｼｮﾝﾋｭｰｽﾞ | C15: 30A | E15: 2 | F15: 本 | G15: =IF((P15+R15)>100000,ROUND((P15+R15),-3),IF((P15+R15)>10000,ROUND((P15+R15),-2),IF((P15+R15)>100,ROUND((P15+R15),-1),(P15+R15)))) -> 2040 | H15: =E15*G15 -> 4080 | I15: 66 | K15: 0.25 | L15: 1 | N15: 0.3 | P15: =(K15*L15*$P$1+M15*L15*$P$2)*N15 -> 1635 | Q15: 0.25 | R15: =P15*Q15 -> 408.75
C16: 50KVA | I16: 積 )
B17: 動力トランス | C17: 6KV/210V 油入り | E17: 1 | F17: 台 | G17: =IF((P17+R17)>100000,ROUND((P17+R17),-3),IF((P17+R17)>10000,ROUND((P17+R17),-2),IF((P17+R17)>100,ROUND((P17+R17),-1),(P17+R17)))) -> 18200 | H17: =E17*G17 -> 18200 | I17: 66 | K17: 1.17 | L17: 1 | M17: 1.17 | N17: 0.3 | P17: =(K17*L17*$P$1+M17*L17*$P$2)*N17 -> 14531.4 | Q17: 0.25 | R17: =P17*Q17 -> 3632.85
I18: 積 )
B19: ﾃﾝｼｮﾝﾋｭｰｽﾞ | C19: 10A | E19: 3 | F19: 本 | G19: =IF((P19+R19)>100000,ROUND((P19+R19),-3),IF((P19+R19)>10000,ROUND((P19+R19),-2),IF((P19+R19)>100,ROUND((P19+R19),-1),(P19+R19)))) -> 2040 | H19: =E19*G19 -> 6120 | I19: 66 | K19: 0.25 | L19: 1 | N19: 0.3 | P19: =(K19*L19*$P$1+M19*L19*$P$2)*N19 -> 1635 | Q19: 0.25 | R19: =P19*Q19 -> 408.75
I20: 積 )
B21: 進相コンデンサー | C21: 25.5KVAR7020v50-60-HzL6 | E21: 1 | F21: 台 | G21: =IF((P21+R21)>100000,ROUND((P21+R21),-3),IF((P21+R21)>10000,ROUND((P21+R21),-2),IF((P21+R21)>100,ROUND((P21+R21),-1),(P21+R21)))) -> 6860 | H21: =E21*G21 -> 6860 | I21: 66 | K21: 0.442 | L21: 1 | M21: 0.442 | N21: 0.3 | P21: =(K21*L21*$P$1+M21*L21*$P$2)*N21 -> 5489.64 | Q21: 0.25 | R21: =P21*Q21 -> 1372.41
I22: 積 )
B23: 限流ﾋｭｰｽﾞ | C23: 10A | E23: 3 | F23: 組 | G23: =IF((P23+R23)>100000,ROUND((P23+R23),-3),IF((P23+R23)>10000,ROUND((P23+R23),-2),IF((P23+R23)>100,ROUND((P23+R23),-1),(P23+R23)))) -> 2040 | H23: =E23*G23 -> 6120 | I23: 66 | K23: 0.25 | L23: 1 | N23: 0.3 | P23: =(K23*L23*$P$1+M23*L23*$P$2)*N23 -> 1635 | Q23: 0.25 | R23: =P23*Q23 -> 408.75
I24: 積 )
B25: 開閉器 | C25: MCCB3P 150A | E25: 1 | F25: 個 | G25: =IF((P25+R25)>100000,ROUND((P25+R25),-3),IF((P25+R25)>10000,ROUND((P25+R25),-2),IF((P25+R25)>100,ROUND((P25+R25),-1),(P25+R25)))) -> 5670 | H25: =E25*G25 -> 5670 | I25: 66 | K25: 1.04 | L25: 1 | N25: 0.2 | P25: =(K25*L25*$P$1+M25*L25*$P$2)*N25 -> 4534.4 | Q25: 0.25 | R25: =P25*Q25 -> 1133.6
I26: 積 )
B27: 開閉器 | C27: MCB3P200A | E27: 1 | F27: 個 | G27: =IF((P27+R27)>100000,ROUND((P27+R27),-3),IF((P27+R27)>10000,ROUND((P27+R27),-2),IF((P27+R27)>100,ROUND((P27+R27),-1),(P27+R27)))) -> 5670 | H27: =E27*G27 -> 5670 | I27: 66 | K27: 1.04 | L27: 1 | N27: 0.2 | P27: =(K27*L27*$P$1+M27*L27*$P$2)*N27 -> 4534.4 | Q27: 0.25 | R27: =P27*Q27 -> 1133.6
I28: 積 )
B29: 開閉器 | C29: MCB3P175A | E29: 1 | F29: 個 | G29: =IF((P29+R29)>100000,ROUND((P29+R29),-3),IF((P29+R29)>10000,ROUND((P29+R29),-2),IF((P29+R29)>100,ROUND((P29+R29),-1),(P29+R29)))) -> 5670 | H29: =E29*G29 -> 5670 | I29: 66 | K29: 1.04 | L29: 1 | N29: 0.2 | P29: =(K29*L29*$P$1+M29*L29*$P$2)*N29 -> 4534.4 | Q29: 0.25 | R29: =P29*Q29 -> 1133.6
I30: 積 )
B31: 開閉器 | C31: MCB3P100A | E31: 6 | F31: 個 | G31: =IF((P31+R31)>100000,ROUND((P31+R31),-3),IF((P31+R31)>10000,ROUND((P31+R31),-2),IF((P31+R31)>100,ROUND((P31+R31),-1),(P31+R31)))) -> 3860 | H31: =E31*G31 -> 23160 | I31: 66 | K31: 0.708 | L31: 1 | N31: 0.2 | P31: =(K31*L31*$P$1+M31*L31*$P$2)*N31 -> 3086.88 | Q31: 0.25 | R31: =P31*Q31 -> 771.72
I32: 積 )
B33: 開閉器 | C33: MCB3P50A | E33: 1 | F33: 個 | G33: =IF((P33+R33)>100000,ROUND((P33+R33),-3),IF((P33+R33)>10000,ROUND((P33+R33),-2),IF((P33+R33)>100,ROUND((P33+R33),-1),(P33+R33)))) -> 3040 | H33: =E33*G33 -> 3040 | I33: 66 | K33: 0.558 | L33: 1 | N33: 0.2 | P33: =(K33*L33*$P$1+M33*L33*$P$2)*N33 -> 2432.88 | Q33: 0.25 | R33: =P33*Q33 -> 608.22
I34: 積 )
B35: 開閉器 | C35: MCB2P20A | E35: 3 | F35: 個 | G35: =IF((P35+R35)>100000,ROUND((P35+R35),-3),IF((P35+R35)>10000,ROUND((P35+R35),-2),IF((P35+R35)>100,ROUND((P35+R35),-1),(P35+R35)))) -> 2110 | H35: =E35*G35 -> 6330 | I35: 66 | K35: 0.387 | L35: 1 | N35: 0.2 | P35: =(K35*L35*$P$1+M35*L35*$P$2)*N35 -> 1687.32 | Q35: 0.25 | R35: =P35*Q35 -> 421.83
I36: 積 )
B37: 開閉器 | C37: MCB3P75A | E37: 2 | F37: 個 | G37: =IF((P37+R37)>100000,ROUND((P37+R37),-3),IF((P37+R37)>10000,ROUND((P37+R37),-2),IF((P37+R37)>100,ROUND((P37+R37),-1),(P37+R37)))) -> 3860 | H37: =E37*G37 -> 7720 | I37: 66 | K37: 0.708 | L37: 1 | N37: 0.2 | P37: =(K37*L37*$P$1+M37*L37*$P$2)*N37 -> 3086.88 | Q37: 0.25 | R37: =P37*Q37 -> 771.72
I38: 積 )
B39: 開閉器 | C39: MCB3P60A | E39: 1 | F39: 個 | G39: =IF((P39+R39)>100000,ROUND((P39+R39),-3),IF((P39+R39)>10000,ROUND((P39+R39),-2),IF((P39+R39)>100,ROUND((P39+R39),-1),(P39+R39)))) -> 3040 | H39: =E39*G39 -> 3040 | I39: 66 | K39: 0.558 | L39: 1 | N39: 0.2 | P39: =(K39*L39*$P$1+M39*L39*$P$2)*N39 -> 2432.88 | Q39: 0.25 | R39: =P39*Q39 -> 608.22
B46: 合計 | H46: =SUM(H8:H39) -> 134180

Sheet 機器搬出費 (hidden)
A1: 件 名 | B1: 青山中学校美術室空調設備設置及び高圧受電設備改修工事 | F1: R3年度版 公共建築工事標準単価積算基準 | I1: 刊行物 | O1: 労務単価R2 | Q1: 機搬-2
A2: 代価名 | B2: 機器搬入費 | C2: 1 | D2: 式 | E2: =O54 -> 60900 | I2: 積・ | J2: 積算資料 | K2: 2021/1月号 | L2: 施・ | M2: 施工単価 | N2: 2021/1月冬号 | O2: とび工 | P2: 27200
I3: 物・ | J3: 建設物価 | K3: 2021/1月号 | L3: コ・ | M3: コスト情報 | N3: 2021/1月冬号 | O3: 運転手（一般） | P3: 20200
I5: 刊行物 | J5: 刊行物
I6: 建設物価 | J6: 施工単価 | K6: 材料 | O6: 「その他」の
A7: 頁 | B7: 細 目 | C7: 単位 | D7: 名 称 | E7: 摘 要 | F7: 金 額 | G7: 根 拠 | I7: 積算資料 | J7: コスト情報 | K7: 平均単価 | L7: 損料 | M7: 労務単価 | N7: 掛率 | O7: 率対象 | P7: 所要量 | Q7: 備 考
I8: 根拠単価 | J8: 根拠単価
G10: 積）
A11: 300 | B11: 機器搬入費 | C11: ｔ | F11: =SUM(F12:F25) -> 71919.10039 | G11: P-M140
H12: 285 | I12: 46000 | P12: 台・日/ｔ
D13: 揚重機賃料 | E13: ﾄﾗｯｸｸﾚｰﾝ | F13: =K13*P13 -> 15962 | H13: 809 | I13: 46000 | K13: =AVERAGE(I12:I13) -> 46000 | P13: 0.347
L14: 損料表20-24 | P14: 台・日/ｔ
D15: 油圧ジャッキ損料 | E15: 20ｔ | F15: =L15*P15 -> 977.368 | L15: 563 | P15: 1.736
H16: 701 | I16: 9000 | K16: =AVERAGE(I16:I17) -> 9270 | L16: ←1本あたり | P16: ｍ/ｔ
D17: コロ | E17: G92A（3.66ｍ）×2ｍ | F17: =K17*P17 -> 41.12739344 | H17: 570 | I17: 9540 | K17: =K16/3.66*2 -> 5065.57377 | L17: ←2ｍあたり | P17: =8.119/1000 -> 0.008119
H18: 235 | I18: 36000 | P18: ㎥/ｔ
D19: 道板 | E19: 松4ｍ×3.6㎝×15㎝ | F19: =K19*P19 -> 7.722 | H19: 156 | I19: 42000 | K19: =AVERAGE(I18:I19) -> 39000 | P19: 0.000198
D20: 油圧ジャッキ、ｺﾛ | P20: 日/ｔ | Q20: 「運搬機械運転」は
D21: 道板の運搬費 | E21: ﾄﾗｯｸ普通用2ｔ積 | F21: =M21*N21*P21 -> 666.883 | M21: =F27 -> 38107.6 | N21: 1 | P21: 0.0175 | Q21: 表M1-1-73による。
P22: 人
D23: とび工 | F23: =M23*N23*P23 -> 43411.2 | M23: =P2 -> 27200 | N23: 1.2 | P23: 1.33
D25: その他 | F25: =O25*P25 -> 10852.8 | O25: =F23 -> 43411.2 | P25: 0.25
G26: 積）
A27: 313 | B27: 運搬機械運転 | C27: 日 | E27: ﾄﾗｯｸ普通用2ｔ積 | F27: =SUM(F28:F35) -> 38107.6 | G27: P-M79
P28: 人
D29: 運転手(一般） | F29: =M29*N29*P29 -> 24240 | M29: =P3 -> 20200 | N29: 1.2 | P29: 1
H30: 258 | I30: 104 | P30: 円/L
D31: 燃料（軽油） | E31: ｽﾀﾝﾄﾞ給油 | F31: =P31*K31 -> 2069.6 | H31: 788 | I31: 104 | K31: =AVERAGE(I30:I31) -> 104 | P31: 19.9
L32: 損料表03-1 | P32: 円/日
D33: 機械損料 | F33: =L33*P33 -> 5220.6 | L33: 4620 | P33: 1.13
D35: その他 | F35: =O35*P35 -> 6577.4 | O35: =SUM(F28:F31) -> 26309.6 | P35: 0.25
B44: 条件 P-M74 | C44: 補正率 | E44: ※体積・質量詳細不明
A45: 機器1 | B45: 単独でない | C45: 1 | D45: 機器1 | E45: 既設電灯トランス | F45: 体積㎥ | G45: 0.615 | H45: × | I45: 0.56 | J45: × | K45: 1.01 | L45: ＝ | M45: =G45*I45*K45 -> 0.347844 | N45: 質量ｋｇ | O45: 405 | P45: 質量/体積 | Q45: =O45/M45 -> 1164.315038
B46: 600㎏/m3以上 | Q46: =IF(Q45>600,"600kg/m3以上","600㎏/m3未満") -> 600kg/m3以上
B47: 500ｋｇ以下 | C47: 1.2 | E47: ※質量詳細不明 | G47: =F$11 -> 71919.10039 | H47: × | I47: =O45/1000 -> 0.405 | J47: × | K47: =C45*C47 -> 1.2 | L47: ＝ | M47: =G47*I47*K47 -> 34952.68279 | N47: 端数補正 | O47: =IF(M47>10000,ROUND(M47,-2),IF(M47>100,ROUND(M47,-1),M47)) -> 35000 | P47: 円
A48: 機器2 | B48: 単独でない | C48: 1 | D48: 機器2 | E48: 既設動力トランス | F48: 体積㎥ | G48: 0.52 | H48: × | I48: 0.52 | J48: × | K48: 0.8 | L48: ＝ | M48: =G48*I48*K48 -> 0.21632 | N48: 質量ｋｇ | O48: 300 | P48: 質量/体積 | Q48: =O48/M48 -> 1386.83432
B49: 600㎏/m3以上 | Q49: =IF(Q48>600,"600kg/m3以上","600㎏/m3未満") -> 600kg/m3以上
B50: 500ｋｇ以下 | C50: 1.2 | G50: =F$11 -> 71919.10039 | H50: × | I50: =O48/1000 -> 0.3 | J50: × | K50: =C48*C50 -> 1.2 | L50: ＝ | M50: =G50*I50*K50 -> 25890.87614 | N50: 端数補正 | O50: =IF(M50>10000,ROUND(M50,-2),IF(M50>100,ROUND(M50,-1),M50)) -> 25900 | P50: 円
A51: 機器3 | D51: 機器3 | F51: 体積㎥ | H51: × | J51: × | L51: ＝ | M51: =G51*I51*K51 -> 0 | N51: 質量ｋｇ | P51: 質量/体積 | Q51: =O51/M51 -> 
Q52: =IF(Q51>600,"600kg/m3以上","600㎏/m3未満") -> 
G53: =F$11 -> 71919.10039 | H53: × | I53: =O51/1000 -> 0 | J53: × | K53: =C51*C53 -> 0 | L53: ＝ | M53: =G53*I53*K53 -> 0 | N53: 端数補正 | O53: =IF(M53>10000,ROUND(M53,-2),IF(M53>100,ROUND(M53,-1),M53)) -> 0 | P53: 円
D54: 代価 | E54: 機器運搬費 | F54: 1 | G54: 式 | O54: =SUM(O47+O50) -> 60900 | P54: 円

Sheet 掘削埋戻 (hidden)
B1: (件名) | C1: 青山中学校美術室空調設備設置及び高圧受電設備改修工事 | R1: Ｈ＝１．５ｍ以下 | T1: 新営・改修共補正率同じ
I2: 代 価 表 | O2: 代価 № | P2: 1 | R2: 根切り幅 ＝ 地下埋設物底面寸法 ＋余幅
R3: 深さ1m未満
B4: 名称 | C4: 掘削及び埋戻し費 | F4: （１式計上） | I4: 機械運搬費(ﾊﾞｯｸﾎｳ 30km以内） | M4: 単価資料 | R4: 深さ1m以上1.5m未満
C5: （直堀り工法） | I5: コスト情報 | J5: 施工単価 | K5: 平均値 | M5: ｺｽﾄ情報 | O5: 施工単価
I6: 65000 | J6: 71000 | K6: =AVERAGE(I6,J6) -> 68000 | M6: 2021/1 | O6: 2021/1 | R6: 深さ ＝ 底面までの寸法 ＋捨てｺﾝ及び砂利の厚さ
F8: 掘削 (つぼ掘・布掘) | I8: 埋戻 (発生・仮置き土) | L8: (新営）・（改修） | O8: 単価根拠 （P）
B9: 種 別 | D9: 採用単価 | F9: ｺｽﾄ情報 | G9: 施工単価 | H9: 平均値 | I9: ｺｽﾄ情報 | J9: 施工単価 | K9: 平均値 | L9: 平均値計 | M9: 補正率 | N9: 補正単価 | O9: ｺｽﾄ情報 | P9: 施工単価
B10: 機械 （m3当たり） | D10: =ROUND(N10,(LEN(TEXT(N10,"0"))-3)*-1) -> 1360 | F10: =[7]単価表!$E$10 -> 550 | G10: =[7]単価表!$G$10 -> 530 | H10: =AVERAGE(F10,G10) -> 540 | I10: =[7]単価表!$E$11 -> 770 | J10: =[7]単価表!$G$11 -> 860 | K10: =AVERAGE(I10,J10) -> 815 | L10: =H10+K10 -> 1355 | M10: 1 | N10: =ROUND(L10*M10,2) -> 1355 | O10: =[7]単価表!$D$10 -> 2 | P10: =[7]単価表!$F$10 -> 8
B11: 人力 （m3当たり） | D11: =ROUND(N11,(LEN(TEXT(N11,"0"))-3)*-1) -> 9250 | F11: =[7]単価表!$E$26 -> 6800 | G11: =[7]単価表!$G$26 -> 5800 | H11: =AVERAGE(F11,G11) -> 6300 | I11: =[7]単価表!$E$27 -> 3000 | J11: =[7]単価表!$G$27 -> 2900 | K11: =AVERAGE(I11,J11) -> 2950 | L11: =H11+K11 -> 9250 | M11: 1 | N11: =ROUND(L11*M11,2) -> 9250 | O11: =[7]単価表!$D$26 -> 127 | P11: =[7]単価表!$F$26 -> 59
C13: 根切り幅 ＝ 底面幅 ＋余幅 | G13: ※参考余幅 | H13: （配管類） | I13: 深さ1m未満の場合 0.2ｍ | K13: 深さ1.5m未満の場合 0.4ｍ | M13: （地下埋設物） | N13: 0.5ｍ
H14: 空調設備 | J14: 機械運搬
B15: 種別 | C15: 根切り幅 (W) | E15: 深さ ( H ) | F15: m2数 | G15: ｍ数 | H15: ｍ3数 | I15: 往復 | K15: ｍ数 | L15: ｍ3数 | M15: ｍ数 | N15: ｍ3数 | O15: ｍ数 | P15: ｍ3数
C16: 0.5 | D16: =IF(C16>0,"×","") -> × | E16: 0.6 | F16: =C16*E16 -> 0.3 | G16: 30 | H16: =ROUNDDOWN($F16*G16,2) -> 9 | J16: =ROUNDDOWN($F16*I16,2) -> 0 | L16: =ROUNDDOWN($F16*K16,2) -> 0 | N16: =ROUNDDOWN($F16*M16,2) -> 0 | P16: =ROUNDDOWN($F16*O16,2) -> 0
B17: ① | C17: 機械運搬費 | I17: 1 | J17: =ROUNDDOWN($F17*I17,2) -> 0 | L17: =ROUNDDOWN($F17*K17,2) -> 0 | N17: =ROUNDDOWN($F17*M17,2) -> 0 | P17: =ROUNDDOWN($F17*O17,2) -> 0
B18: 機械 | D18: =IF(C18>0,"×","") ->  | F18: =C18*E18 -> 0 | H18: =ROUNDDOWN($F18*G18,2) -> 0 | J18: =ROUNDDOWN($F18*I18,2) -> 0 | L18: =ROUNDDOWN($F18*K18,2) -> 0 | N18: =ROUNDDOWN($F18*M18,2) -> 0 | P18: =ROUNDDOWN($F18*O18,2) -> 0
D19: =IF(C19>0,"×","") ->  | F19: =C19*E19 -> 0 | H19: =ROUNDDOWN($F19*G19,2) -> 0 | J19: =ROUNDDOWN($F19*I19,2) -> 0 | L19: =ROUNDDOWN($F19*K19,2) -> 0 | N19: =ROUNDDOWN($F19*M19,2) -> 0 | P19: =ROUNDDOWN($F19*O19,2) -> 0
D20: =IF(C20>0,"×","") ->  | F20: =C20*E20 -> 0 | H20: =ROUNDDOWN($F20*G20,2) -> 0 | J20: =ROUNDDOWN($F20*I20,2) -> 0 | L20: =ROUNDDOWN($F20*K20,2) -> 0 | N20: =ROUNDDOWN($F20*M20,2) -> 0 | P20: =ROUNDDOWN($F20*O20,2) -> 0
B21: 単価 | C21: =$D$10 -> 1360 | E21: ① の 計 | G21: =SUM(H16:H20) -> 9 | H21: =ROUNDDOWN($C21*G21,2) -> 12240 | I21: 1 | J21: =ROUNDDOWN($K6*I21,2) -> 68000 | K21: =SUM(L16:L20) -> 0 | L21: =ROUNDDOWN($C21*K21,2) -> 0 | M21: =SUM(N16:N20) -> 0 | N21: =ROUNDDOWN($C21*M21,2) -> 0 | O21: =SUM(P16:P20) -> 0 | P21: =ROUNDDOWN($C21*O21,2) -> 0
B22: ② | D22: =IF(C22>0,"×","") ->  | F22: =C22*E22 -> 0 | H22: =ROUNDDOWN($F22*G22,2) -> 0 | J22: =ROUNDDOWN($F22*I22,2) -> 0 | L22: =ROUNDDOWN($F22*K22,2) -> 0 | N22: =ROUNDDOWN($F22*M22,2) -> 0 | P22: =ROUNDDOWN($F22*O22,2) -> 0
B23: 人力 | D23: =IF(C23>0,"×","") ->  | F23: =C23*E23 -> 0 | H23: =ROUNDDOWN($F23*G23,2) -> 0 | J23: =ROUNDDOWN($F23*I23,2) -> 0 | L23: =ROUNDDOWN($F23*K23,2) -> 0 | N23: =ROUNDDOWN($F23*M23,2) -> 0 | P23: =ROUNDDOWN($F23*O23,2) -> 0
D24: =IF(C24>0,"×","") ->  | F24: =C24*E24 -> 0 | H24: =ROUNDDOWN($F24*G24,2) -> 0 | J24: =ROUNDDOWN($F24*I24,2) -> 0 | L24: =ROUNDDOWN($F24*K24,2) -> 0 | N24: =ROUNDDOWN($F24*M24,2) -> 0 | P24: =ROUNDDOWN($F24*O24,2) -> 0
B25: 単価 | C25: =$D$11 -> 9250 | E25: ② の 計 | G25: =SUM(H22:H24) -> 0 | H25: =ROUNDDOWN($C25*G25,2) -> 0 | I25: =SUM(J22:J24) -> 0 | J25: =ROUNDDOWN($C25*I25,2) -> 0 | K25: =SUM(L22:L24) -> 0 | L25: =ROUNDDOWN($C25*K25,2) -> 0 | M25: =SUM(N22:N24) -> 0 | N25: =ROUNDDOWN($C25*M25,2) -> 0 | O25: =SUM(P22:P24) -> 0 | P25: =ROUNDDOWN($C25*O25,2) -> 0
D26: 合 計 | E26: ① ＋ ② | H26: =H21+H25 -> 12240 | J26: =J21+J25 -> 68000 | L26: =L21+L25 -> 0 | N26: =N21+N25 -> 0 | P26: =P21+P25 -> 0
D27: 計上金額 | H27: =IF(H26>1000,ROUND(H26,(LEN(TEXT(H26,"0"))-3)*-1),ROUND(H26,0)) -> 12200 | J27: =IF(J26>1000,ROUND(J26,(LEN(TEXT(J26,"0"))-3)*-1),ROUND(J26,0)) -> 68000 | K27: 合計 | L27: =H27+J27 -> 80200 | N27: =IF(N26>1000,ROUND(N26,(LEN(TEXT(N26,"0"))-3)*-1),ROUND(N26,0)) -> 0 | P27: =IF(P26>1000,ROUND(P26,(LEN(TEXT(P26,"0"))-3)*-1),ROUND(P26,0)) -> 0

Sheet 塗装 (hidden)
B1: (件名) | C1: 青山中学校美術室空調設備設置及び高圧受電設備改修工事 | Q1: 新営補正率 | R1: 1.01 | S1: 改修補正率 | T1: 1.14 | U1: 厚鋼は頭にGを付ける事
I2: 代 価 表 | N2: 代価 № | O2: 1
B4: 名称 | C4: 塗装工事費 | F4: （１式計上） | N4: 単価資料
N5: ｺｽﾄ情報 | O5: 2021/1
O6: =[7]単価表!$J$26 -> 501
D7: 新営補正率 | E7: 1
B8: 塗装 | C8: （ｺｽﾄ情報） | G8: 空調
B9: ｻｲｽﾞ | C9: 市場単価 | E9: 補正単価 | F9: ｍ数 | G9: 計 | H9: ｍ数 | I9: 計 | J9: ｍ数 | K9: 計 | L9: ｍ数 | M9: 計 | N9: ｍ数 | O9: 計
B10: 19 | D10: 290 | E10: =ROUND(D10*$E$7,-1) -> 290 | I10: =$E10*H10 -> 0 | K10: =$E10*J10 -> 0 | M10: =$E10*L10 -> 0 | O10: =$E10*N10 -> 0
B11: 25 | D11: 320 | E11: =ROUND(D11*$E$7,-1) -> 320 | F11: 14 | G11: =E11*F11 -> 4480 | I11: 0 | K11: 0 | M11: 0 | O11: 0
B12: 31 | D12: =[7]単価表!$J$30 -> 340 | E12: 340 | I12: 0 | K12: 0 | M12: 0 | O12: 0
B13: 39 | C13: 31代用 | D13: =[7]単価表!$J$31 -> 340 | E13: 340 | I13: 0 | K13: 0 | M13: 0 | O13: 0
B14: 51 | D14: =[7]単価表!$J$32 -> 430 | E14: 430 | G14: =$E14*F14 -> 0 | I14: 0 | K14: 0 | M14: 0 | O14: 0
B15: 63 | C15: 51代用 | D15: =[7]単価表!$J$33 -> 430 | E15: 430 | G15: 0 | I15: 0 | K15: 0 | M15: 0 | O15: 0
B16: 75 | D16: =[7]単価表!$J$34 -> 520 | E16: 520 | G16: 0 | I16: 0 | K16: 0 | M16: 0 | O16: 0
B17: G16 | D17: =[7]単価表!$J$35 -> 310 | E17: 310 | G17: 0 | I17: 0 | K17: 0 | M17: 0 | O17: 0
B18: G22 | C18: 16代用 | D18: =[7]単価表!$J$36 -> 310 | E18: 310 | G18: 0 | I18: 0 | K18: 0 | M18: 0 | O18: 0
B19: G28 | D19: =[7]単価表!$J$37 -> 360 | E19: 360 | G19: 0 | I19: 0 | K19: 0 | M19: 0 | O19: 0
B20: G36 | C20: 28代用 | D20: =[7]単価表!$J$38 -> 360 | E20: 360 | G20: 0 | I20: 0 | K20: 0 | M20: 0 | O20: 0
B21: G42 | D21: =[7]単価表!$J$39 -> 410 | E21: 410 | G21: 0 | I21: 0 | K21: 0 | M21: 0 | O21: 0
B22: G54 | C22: 42代用 | D22: =[7]単価表!$J$40 -> 410 | E22: 410 | G22: 0 | I22: 0 | K22: 0 | M22: 0 | O22: 0
B23: G70 | D23: =[7]単価表!$J$41 -> 520 | E23: 520 | G23: 0 | I23: 0 | K23: 0 | M23: 0 | O23: 0
B24: G82 | D24: =[7]単価表!$J$42 -> 590 | E24: 590 | G24: 0 | I24: 0 | K24: 0 | M24: 0 | O24: 0
G25: 0 | I25: 0 | K25: 0 | M25: 0 | O25: 0
B26: 合 計 | G26: =SUM(G10:G25) -> 4480 | I26: =SUM(I10:I25) -> 0 | K26: =SUM(K10:K25) -> 0 | M26: =SUM(M10:M25) -> 0 | O26: =SUM(O10:O25) -> 0
B27: 計上金額 | G27: =IF(G26>1000,ROUND(G26,(LEN(TEXT(G26,"0"))-3)*-1),ROUND(G26,0)) -> 4480 | I27: =IF(I26>1000,ROUND(I26,(LEN(TEXT(I26,"0"))-3)*-1),ROUND(I26,0)) -> 0 | K27: =IF(K26>1000,ROUND(K26,(LEN(TEXT(K26,"0"))-3)*-1),ROUND(K26,0)) -> 0 | M27: =IF(M26>1000,ROUND(M26,(LEN(TEXT(M26,"0"))-3)*-1),ROUND(M26,0)) -> 0 | O27: =IF(O26>1000,ROUND(O26,(LEN(TEXT(O26,"0"))-3)*-1),ROUND(O26,0)) -> 0
